fUSD/lending_fUSD_20240526
["ID","MTS","AMOUNT","RATE_DAILY","PERIOD"]
[328004253,1716766335937,-500.0,0.00030684,4]
[328004254,1716766335947,-500.0,0.00030684,4]
[328004255,1716766335956,-500.0,0.00030684,4]
[328004256,1716766335965,-716.96,0.00030684,4]
[328004257,1716766335974,-500.0,0.00030684,4]
[328004258,1716766335984,-535.85,0.00030684,4]
[328004259,1716766335993,-500.0,0.00030684,4]
[328004260,1716766336006,-616.66,0.00030684,4]
[328004261,1716766336016,-500.0,0.00030684,4]
[328004262,1716766336025,-500.0,0.00030684,4]
[328004263,1716766336035,-500.0,0.00030684,4]
[328004264,1716766336044,-500.0,0.00030684,4]
[328004265,1716766336054,-179.56,0.00030684,4]
[328004266,1716766336063,-560.6,0.00030684,4]
[328004267,1716766336072,-808.3,0.00030684,4]
[328004268,1716766336082,-500.0,0.00030684,4]
[328004269,1716766336091,-291.63699936,0.00030684,4]
[328004270,1716766336100,-500.0,0.00030684,4]
[328004271,1716766336110,-500.0,0.00030684,4]
[328004272,1716766336119,-1217.19,0.00030684,4]
[328004273,1716766336129,-520.62,0.00030684,4]
[328004274,1716766336138,-500.0,0.00030684,4]
[328004275,1716766336148,-1635.18,0.00030684,4]
[328004276,1716766336157,-500.0,0.00030684,4]
[328004277,1716766336167,-988.23,0.00030684,4]
[328004278,1716766336176,-951.24,0.00030684,4]
[328004279,1716766336185,-4763.6,0.00030684,4]
[328004280,1716766336194,-1408.55,0.00030684,4]
[328004281,1716766336206,-500.0,0.00030684,4]
[328004282,1716766336215,-773.49,0.00030684,4]
[328004283,1716766336224,-500.0,0.00030684,4]
[328004284,1716766336234,-500.0,0.00030684,4]
[328004285,1716766336244,-1097.24,0.00030684,4]
[328004286,1716766336256,-1770.78,0.00030684,4]
[328004287,1716766336266,-1231.06,0.00030684,4]
[328004288,1716766336275,-12518.24,0.00030684,4]
[328004289,1716766336284,-1324.66,0.00030684,4]
[328004290,1716766336295,-716.14,0.00030684,4]
[328004291,1716766336305,-262.36,0.00030684,4]
[328004292,1716766336314,-612.45,0.00030684,4]
[328004293,1716766336324,-808.36,0.00030684,4]
[328004294,1716766336335,-648.03,0.00030684,4]
[328004295,1716766336344,-1164.95,0.00030684,4]
[328004296,1716766336354,-2740.82,0.00030684,4]
[328004297,1716766336363,-595.23,0.00030684,4]
[328004298,1716766336378,-745.74,0.00030684,4]
[328004299,1716766336397,-566.07,0.00030684,4]
[328004300,1716766336408,-563.58,0.00030684,4]
[328004301,1716766336417,-1642.45,0.00030684,4]
[328004302,1716766336427,-538.9,0.00030684,4]
[328004303,1716766336437,-500.0,0.00030684,4]
[328004304,1716766336447,-5551.36,0.00030684,4]
[328004305,1716766336456,-500.0,0.00030684,4]
[328004306,1716766336466,-500.0,0.00030684,4]
[328004307,1716766336475,-500.0,0.00030684,4]
[328004308,1716766336485,-593.26,0.00030684,4]
[328004309,1716766336494,-972.91,0.00030684,4]
[328004310,1716766336504,-272.93,0.00030684,4]
[328004311,1716766336514,-561.18,0.00030684,4]
[328004312,1716766336523,-575.29,0.00030684,4]
[328004313,1716766336533,-881.68,0.00030684,4]
[328004314,1716766336542,-500.0,0.00030684,4]
[328004315,1716766336552,-1259.79,0.00030684,4]
[328004316,1716766336562,-605.76,0.00030684,4]
[328004317,1716766336571,-3536.07,0.00030684,4]
[328004318,1716766336580,-850.48,0.00030684,4]
[328004319,1716766336590,-500.0,0.00030684,4]
[328004320,1716766336599,-826.83,0.00030684,4]
[328004321,1716766336608,-553.22,0.00030684,4]
[328004322,1716766336617,-1946.87,0.00030684,4]
[328004323,1716766336626,-500.0,0.00030684,4]
[328004324,1716766336636,-1471.62,0.00030684,4]
[328004325,1716766336645,-1299.03,0.00030684,4]
[328004326,1716766336654,-874.0,0.00030684,4]
[328004327,1716766336664,-654.22,0.00030684,4]
[328004328,1716766336673,-500.0,0.00030684,4]
[328004329,1716766336682,-500.0,0.00030684,4]
[328004330,1716766336692,-509.25,0.00030684,4]
[328004331,1716766336701,-777.17,0.00030684,4]
[328004332,1716766336783,-1565.29,0.00030684,4]
[328004333,1716766336793,-855.17,0.00030684,4]
[328004334,1716766336803,-701.7,0.00030684,4]
[328004335,1716766336813,-550.1,0.00030684,4]
[328004336,1716766336822,-8290.14,0.00030684,4]
[328004337,1716766336831,-500.0,0.00030684,4]
[328004338,1716766336840,-761.08,0.00030684,4]
[328004339,1716766336850,-599.5,0.00030684,4]
[328004340,1716766336859,-500.0,0.00030684,4]
[328004341,1716766336869,-500.0,0.00030684,4]
[328004342,1716766336878,-643.13,0.00030684,4]
[328004343,1716766336888,-4278.59,0.00030684,4]
[328004344,1716766336897,-534.41,0.00030684,4]
[328004345,1716766336907,-500.0,0.00030684,4]
[328004346,1716766336916,-6703.51,0.00030684,4]
[328004347,1716766336925,-500.0,0.00030684,4]
[328004348,1716766336934,-1138.56,0.00030684,4]
[328004349,1716766336943,-500.0,0.00030684,4]
[328004350,1716766336952,-880.9,0.00030684,4]
[328004351,1716766336961,-500.0,0.00030684,4]
[328004352,1716766336971,-1237.34,0.00030684,4]
[328004353,1716766336981,-500.0,0.00030684,4]
[328004354,1716766336991,-772.3,0.00030684,4]
[328004355,1716766337000,-891.81,0.00030684,4]
[328004356,1716766337010,-588.35,0.00030684,4]
[328004357,1716766337019,-500.0,0.00030684,4]
[328004358,1716766337028,-500.0,0.00030684,4]
[328004359,1716766337037,-930.12,0.00030684,4]
[328004360,1716766337047,-723.38,0.00030684,4]
[328004361,1716766337056,-524.97,0.00030684,4]
[328004362,1716766337066,-500.0,0.00030684,4]
[328004363,1716766337075,-3019.87,0.00030684,4]
[328004364,1716766337085,-500.0,0.00030684,4]
[328004365,1716766337094,-398.22,0.00030684,4]
[328004366,1716766337103,-500.0,0.00030684,4]
[328004367,1716766337113,-737.24,0.00030684,4]
[328004368,1716766337124,-500.0,0.00030684,4]
[328004369,1716766337135,-500.0,0.00030684,4]
[328004370,1716766337144,-500.0,0.00030684,4]
[328004371,1716766337153,-3353.66,0.00030684,4]
[328004372,1716766337163,-1655.73,0.00030684,4]
[328004373,1716766337172,-500.0,0.00030684,4]
[328004374,1716766337182,-628.01,0.00030684,4]
[328004375,1716766337192,-557.95,0.00030684,4]
[328004376,1716766337201,-1130.95,0.00030684,4]
[328004377,1716766337211,-500.0,0.00030684,4]
[328004378,1716766337220,-2845.63,0.00030684,4]
[328004379,1716766337229,-1950.47,0.00030684,4]
[328004380,1716766337238,-902.66,0.00030684,4]
[328004381,1716766337249,-786.5,0.00030684,4]
[328004382,1716766337263,-1344.42,0.00030684,4]
[328004383,1716766337272,-7054.88,0.00030684,4]
[328004384,1716766337281,-412.3,0.00030684,4]
[328004385,1716766337292,-1190.17,0.00030684,4]
[328004386,1716766337305,-693.7,0.00030684,4]
[328004387,1716766337315,-500.0,0.00030684,4]
[328004388,1716766337327,-792.19,0.00030684,4]
[328004389,1716766337337,-500.0,0.00030684,4]
[328004390,1716766337347,-500.0,0.00030684,4]
[328004391,1716766337355,-429.1,0.00030684,4]
[328004392,1716766337364,-484.28,0.00030684,4]
[328004393,1716766337374,-500.0,0.00030684,4]
[328004394,1716766337383,-753.14,0.00030684,4]
[328004395,1716766337391,-1616.54,0.00030684,4]
[328004396,1716766337400,-735.26,0.00030684,4]
[328004397,1716766337410,-500.0,0.00030684,4]
[328004398,1716766337419,-1672.85,0.00030684,4]
[328004399,1716766337428,-1478.27,0.00030684,4]
[328004400,1716766337438,-500.0,0.00030684,4]
[328004401,1716766337450,-1055.1,0.00030684,4]
[328004402,1716766337460,-1222.14,0.00030684,4]
[328004403,1716766337469,-564.5,0.00030684,4]
[328004404,1716766337478,-989.85184128,0.00030684,4]
[328004405,1716766337487,-2006.47,0.00030684,4]
[328004406,1716766337496,-1219.52,0.00030684,4]
[328004407,1716766337505,-860.6,0.00030684,4]
[328004408,1716766337515,-1285.66,0.00030684,4]
[328004409,1716766337524,-500.0,0.00030684,4]
[328004410,1716766337533,-1245.87,0.00030684,4]
[328004411,1716766337543,-500.0,0.00030684,4]
[328004412,1716766337552,-500.0,0.00030684,4]
[328004413,1716766337561,-1054.38,0.00030684,4]
[328004414,1716766337571,-500.0,0.00030684,4]
[328004415,1716766337581,-686.51,0.00030684,4]
[328004416,1716766337590,-2090.3,0.00030684,4]
[328004417,1716766337599,-500.0,0.00030684,4]
[328004418,1716766337609,-500.0,0.00030684,4]
[328004419,1716766337618,-500.0,0.00030684,4]
[328004420,1716766337627,-4489.53,0.00030684,4]
[328004421,1716766337636,-500.0,0.00030684,4]
[328004422,1716766337646,-500.0,0.00030684,4]
[328004423,1716766337655,-660.84,0.00030684,4]
[328004424,1716766337665,-500.0,0.00030684,4]
[328004425,1716766337674,-1241.08,0.00030684,4]
[328004426,1716766337683,-1622.1,0.00030684,4]
[328004427,1716766337693,-1457.46,0.00030684,4]
[328004428,1716766337702,-519.03,0.00030684,4]
[328004429,1716766337711,-767.41,0.00030684,4]
[328004430,1716766337720,-500.0,0.00030684,4]
[328004431,1716766337730,-540.35,0.00030684,4]
[328004432,1716766337739,-535.71,0.00030684,4]
[328004433,1716766337749,-754.4,0.00030684,4]
[328004434,1716766337759,-1446.35,0.00030684,4]
[328004435,1716766337769,-3162.97,0.00030684,4]
[328004436,1716766337778,-656.74,0.00030684,4]
[328004437,1716766337787,-1154.85,0.00030684,4]
[328004438,1716766337796,-698.24,0.00030684,4]
[328004439,1716766337806,-1228.33,0.00030684,4]
[328004440,1716766337816,-1334.79,0.00030684,4]
[328004441,1716766337825,-962.47,0.00030684,4]
[328004442,1716766337834,-594.66,0.00030684,4]
[328004443,1716766337844,-500.0,0.00030684,4]
[328004444,1716766337853,-150.0,0.000308,19]
[328004445,1716766337863,-538.44,0.0003088,2]
[328004446,1716766337872,-1214.89532928,0.00030898,2]
[328004447,1716766337881,-500.0,0.00030958,4]
[328004448,1716766337891,-500.0,0.00030958,4]
[328004449,1716766337900,-944.44,0.00030958,4]
[328004450,1716766337909,-791.42,0.00030958,4]
[328004451,1716766337919,-500.0,0.00030958,4]
[328004452,1716766337928,-500.0,0.00030958,4]
[328004453,1716766337937,-822.31,0.00030958,4]
[328004454,1716766337946,-500.0,0.00030958,4]
[328004455,1716766337955,-500.0,0.00030958,4]
[328004456,1716766337964,-500.0,0.00030958,4]
[328004457,1716766337974,-620.76,0.00030958,4]
[328004458,1716766337983,-500.0,0.00030958,4]
[328004459,1716766337993,-394.0,0.00030958,4]
[328004460,1716766338002,-500.0,0.00030958,4]
[328004461,1716766338013,-429.52,0.00030958,4]
[328004462,1716766338023,-500.0,0.00030958,4]
[328004463,1716766338032,-500.0,0.00030958,4]
[328004464,1716766338041,-576.1,0.00030958,4]
[328004465,1716766338050,-697.5,0.00030958,4]
[328004466,1716766338060,-500.0,0.00030958,4]
[328004467,1716766338069,-500.0,0.00030958,4]
[328004468,1716766338078,-547.78,0.00030958,4]
[328004469,1716766338088,-745.11,0.00030958,4]
[328004470,1716766338098,-500.0,0.00030958,4]
[328004471,1716766338107,-500.0,0.00030958,4]
[328004472,1716766338116,-500.0,0.00030958,4]
[328004473,1716766338126,-500.0,0.00030958,4]
[328004474,1716766338135,-548.59,0.00030958,4]
[328004475,1716766338144,-500.0,0.00030958,4]
[328004476,1716766338154,-521.76,0.00030958,4]
[328004477,1716766338164,-500.0,0.00030958,4]
[328004478,1716766338173,-546.32,0.00030958,4]
[328004479,1716766338182,-503.3,0.00030958,4]
[328004480,1716766338192,-500.0,0.00030958,4]
[328004481,1716766338200,-500.0,0.00030958,4]
[328004482,1716766338210,-513.73,0.00030958,4]
[328004483,1716766338219,-500.0,0.00030958,4]
[328004484,1716766338228,-1125.41,0.00030958,4]
[328004485,1716766338238,-534.62,0.00030958,4]
[328004486,1716766338247,-500.0,0.00030958,4]
[328004487,1716766338261,-540.75,0.00030958,4]
[328004488,1716766338271,-500.0,0.00030958,4]
[328004489,1716766338280,-500.0,0.00030958,4]
[328004490,1716766338289,-1235.19,0.00030958,4]
[328004491,1716766338299,-729.16,0.00030958,4]
[328004492,1716766338308,-500.0,0.00030958,4]
[328004493,1716766338318,-500.0,0.00030958,4]
[328004494,1716766338328,-500.0,0.00030958,4]
[328004495,1716766338340,-500.0,0.00030958,4]
[328004496,1716766338350,-500.0,0.00030958,4]
[328004497,1716766338359,-500.0,0.00030958,4]
[328004498,1716766338368,-864.88,0.00030958,4]
[328004499,1716766338377,-500.0,0.00030958,4]
[328004500,1716766338387,-963.86,0.00030958,4]
[328004501,1716766338396,-500.0,0.00030958,4]
[328004502,1716766338405,-500.0,0.00030958,4]
[328004503,1716766338414,-180.17,0.00030958,4]
[328004504,1716766338424,-874.71,0.00030958,4]
[328004505,1716766338434,-835.43,0.00030958,4]
[328004506,1716766338443,-529.68,0.00030958,4]
[328004507,1716766338455,-1097.89,0.00030958,4]
[328004508,1716766338464,-1126.6,0.00030958,4]
[328004509,1716766338474,-370.76,0.00030958,4]
[328004510,1716766338484,-866.64,0.00030958,4]
[328004511,1716766338493,-524.51,0.00030958,4]
[328004512,1716766338503,-500.0,0.00030958,4]
[328004513,1716766338512,-500.0,0.00030958,4]
[328004514,1716766338522,-500.0,0.00030958,4]
[328004515,1716766338532,-500.0,0.00030958,4]
[328004516,1716766338541,-754.22,0.00030958,4]
[328004517,1716766338550,-1051.14,0.00030958,4]
[328004518,1716766338559,-500.0,0.00030958,4]
[328004519,1716766338569,-500.0,0.00030958,4]
[328004520,1716766338579,-500.0,0.00030958,4]
[328004521,1716766338588,-500.0,0.00030958,4]
[328004522,1716766338598,-1051.14,0.00030958,4]
[328004523,1716766338607,-500.0,0.00030958,4]
[328004524,1716766338617,-500.0,0.00030958,4]
[328004525,1716766338626,-500.0,0.00030958,4]
[328004526,1716766338636,-1380.33,0.00030958,4]
[328004527,1716766338645,-500.0,0.00030958,4]
[328004528,1716766338654,-828.3,0.00030958,4]
[328004529,1716766338663,-832.97,0.00030958,4]
[328004530,1716766338673,-500.0,0.00030958,4]
[328004531,1716766338682,-500.0,0.00030958,4]
[328004532,1716766338690,-500.0,0.00030958,4]
[328004533,1716766338700,-716.96,0.00030958,4]
[328004534,1716766338710,-554.57,0.00030958,4]
[328004535,1716766338720,-500.0,0.00030958,4]
[328004536,1716766338729,-616.66,0.00030958,4]
[328004537,1716766338738,-500.0,0.00030958,4]
[328004538,1716766338747,-500.0,0.00030958,4]
[328004539,1716766338759,-500.0,0.00030958,4]
[328004540,1716766338769,-500.0,0.00030958,4]
[328004541,1716766338778,-179.56,0.00030958,4]
[328004542,1716766338787,-808.3,0.00030958,4]
[328004543,1716766338796,-500.0,0.00030958,4]
[328004544,1716766338805,-500.0,0.00030958,4]
[328004545,1716766338814,-500.0,0.00030958,4]
[328004546,1716766338824,-1217.19,0.00030958,4]
[328004547,1716766338833,-520.62,0.00030958,4]
[328004548,1716766338843,-500.0,0.00030958,4]
[328004549,1716766338853,-1635.18,0.00030958,4]
[328004550,1716766338864,-500.0,0.00030958,4]
[328004551,1716766338873,-988.23,0.00030958,4]
[328004552,1716766338883,-951.24,0.00030958,4]
[328004553,1716766338892,-4763.6,0.00030958,4]
[328004554,1716766338902,-1408.55,0.00030958,4]
[328004555,1716766338911,-419.43,0.00030958,4]
[328004556,1716766338922,-773.49,0.00030958,4]
[328004557,1716766338931,-199.44,0.00030958,4]
[328004558,1716766338943,-500.0,0.00030958,4]
[328004559,1716766338953,-1097.24,0.00030958,4]
[328004560,1716766338962,-1770.78,0.00030958,4]
[328004561,1716766338972,-1231.06,0.00030958,4]
[328004562,1716766338982,-12518.24,0.00030958,4]
[328004563,1716766338992,-1324.66,0.00030958,4]
[328004564,1716766339002,-716.14,0.00030958,4]
[328004565,1716766339013,-808.36,0.00030958,4]
[328004566,1716766339023,-648.03,0.00030958,4]
[328004567,1716766339032,-1164.95,0.00030958,4]
[328004568,1716766339041,-2740.82,0.00030958,4]
[328004569,1716766339051,-595.23,0.00030958,4]
[328004570,1716766339060,-745.74,0.00030958,4]
[328004571,1716766339070,-566.07,0.00030958,4]
[328004572,1716766339079,-563.58,0.00030958,4]
[328004573,1716766339088,-1642.45,0.00030958,4]
[328004574,1716766339097,-538.9,0.00030958,4]
[328004575,1716766339106,-500.0,0.00030958,4]
[328004576,1716766339117,-5551.36,0.00030958,4]
[328004577,1716766339126,-500.0,0.00030958,4]
[328004578,1716766339135,-491.66232745,0.00030958,4]
[328004579,1716766339144,-500.0,0.00030958,4]
[328004580,1716766339154,-593.26,0.00030958,4]
[328004581,1716766339163,-972.91,0.00030958,4]
[328004582,1716766339172,-561.18,0.00030958,4]
[328004583,1716766339181,-575.29,0.00030958,4]
[328004584,1716766339191,-881.68,0.00030958,4]
[328004585,1716766339200,-493.8,0.00030958,4]
[328004586,1716766339209,-1259.79,0.00030958,4]
[328004587,1716766339218,-605.76,0.00030958,4]
[328004588,1716766339228,-3536.07,0.00030958,4]
[328004589,1716766339237,-850.48,0.00030958,4]
[328004590,1716766339247,-500.0,0.00030958,4]
[328004591,1716766339262,-826.83,0.00030958,4]
[328004592,1716766339271,-1946.87,0.00030958,4]
[328004593,1716766339281,-500.0,0.00030958,4]
[328004594,1716766339291,-1471.62,0.00030958,4]
[328004595,1716766339300,-1299.03,0.00030958,4]
[328004596,1716766339310,-874.0,0.00030958,4]
[328004597,1716766339319,-654.22,0.00030958,4]
[328004598,1716766339331,-500.0,0.00030958,4]
[328004599,1716766339340,-500.0,0.00030958,4]
[328004600,1716766339350,-509.25,0.00030958,4]
[328004601,1716766339360,-777.17,0.00030958,4]
[328004602,1716766339369,-1565.29,0.00030958,4]
[328004603,1716766339378,-855.17,0.00030958,4]
[328004604,1716766339387,-701.7,0.00030958,4]
[328004605,1716766339397,-8290.14,0.00030958,4]
[328004606,1716766339407,-500.0,0.00030958,4]
[328004607,1716766339416,-761.08,0.00030958,4]
[328004608,1716766339426,-599.5,0.00030958,4]
[328004609,1716766339436,-500.0,0.00030958,4]
[328004610,1716766339445,-500.0,0.00030958,4]
[328004611,1716766339455,-643.13,0.00030958,4]
[328004612,1716766339464,-4278.59,0.00030958,4]
[328004613,1716766339475,-500.0,0.00030958,4]
[328004614,1716766339484,-6703.51,0.00030958,4]
[328004615,1716766339494,-500.0,0.00030958,4]
[328004616,1716766339503,-1138.56,0.00030958,4]
[328004617,1716766339513,-500.0,0.00030958,4]
[328004618,1716766339522,-880.9,0.00030958,4]
[328004619,1716766339531,-500.0,0.00030958,4]
[328004620,1716766339541,-1237.34,0.00030958,4]
[328004621,1716766339551,-500.0,0.00030958,4]
[328004622,1716766339560,-772.3,0.00030958,4]
[328004623,1716766339570,-891.81,0.00030958,4]
[328004624,1716766339579,-588.35,0.00030958,4]
[328004625,1716766339589,-500.0,0.00030958,4]
[328004626,1716766339599,-500.0,0.00030958,4]
[328004627,1716766339608,-930.12,0.00030958,4]
[328004628,1716766339618,-723.38,0.00030958,4]
[328004629,1716766339627,-500.0,0.00030958,4]
[328004630,1716766339637,-3019.87,0.00030958,4]
[328004631,1716766339649,-500.0,0.00030958,4]
[328004632,1716766339659,-500.0,0.00030958,4]
[328004633,1716766339669,-737.24,0.00030958,4]
[328004634,1716766339679,-500.0,0.00030958,4]
[328004635,1716766339689,-500.0,0.00030958,4]
[328004636,1716766339699,-500.0,0.00030958,4]
[328004637,1716766339709,-3353.66,0.00030958,4]
[328004638,1716766339719,-1655.73,0.00030958,4]
[328004639,1716766339729,-500.0,0.00030958,4]
[328004640,1716766339740,-628.01,0.00030958,4]
[328004641,1716766339750,-557.95,0.00030958,4]
[328004642,1716766339759,-1130.95,0.00030958,4]
[328004643,1716766339769,-500.0,0.00030958,4]
[328004644,1716766339778,-2845.63,0.00030958,4]
[328004645,1716766339787,-1950.47,0.00030958,4]
[328004646,1716766339796,-902.66,0.00030958,4]
[328004647,1716766339805,-786.5,0.00030958,4]
[328004648,1716766339815,-1344.42,0.00030958,4]
[328004649,1716766339825,-7054.88,0.00030958,4]
[328004650,1716766339834,-1190.17,0.00030958,4]
[328004651,1716766339844,-693.7,0.00030958,4]
[328004652,1716766339853,-500.0,0.00030958,4]
[328004653,1716766339862,-792.19,0.00030958,4]
[328004654,1716766339871,-500.74,0.00030958,4]
[328004655,1716766339881,-500.0,0.00030958,4]
[328004656,1716766339890,-500.0,0.00030958,4]
[328004657,1716766339899,-753.14,0.00030958,4]
[328004658,1716766339908,-1616.54,0.00030958,4]
[328004659,1716766339917,-735.26,0.00030958,4]
[328004660,1716766339926,-500.0,0.00030958,4]
[328004661,1716766339935,-1672.85,0.00030958,4]
[328004662,1716766339944,-1478.27,0.00030958,4]
[328004663,1716766339954,-500.0,0.00030958,4]
[328004664,1716766339963,-1055.1,0.00030958,4]
[328004665,1716766339972,-1222.14,0.00030958,4]
[328004666,1716766339981,-564.5,0.00030958,4]
[328004667,1716766339991,-1219.52,0.00030958,4]
[328004668,1716766340000,-2006.47,0.00030958,4]
[328004669,1716766340010,-860.6,0.00030958,4]
[328004670,1716766340019,-1285.66,0.00030958,4]
[328004671,1716766340029,-591.4,0.00030958,4]
[328004672,1716766340038,-1245.87,0.00030958,4]
[328004673,1716766340047,-500.0,0.00030958,4]
[328004674,1716766340057,-500.0,0.00030958,4]
[328004675,1716766340066,-1054.38,0.00030958,4]
[328004676,1716766340075,-500.0,0.00030958,4]
[328004677,1716766340084,-686.51,0.00030958,4]
[328004678,1716766340094,-2090.3,0.00030958,4]
[328004679,1716766340103,-500.0,0.00030958,4]
[328004680,1716766340112,-500.0,0.00030958,4]
[328004681,1716766340121,-500.0,0.00030958,4]
[328004682,1716766340130,-4489.53,0.00030958,4]
[328004683,1716766340142,-500.0,0.00030958,4]
[328004684,1716766340151,-500.0,0.00030958,4]
[328004685,1716766340161,-660.84,0.00030958,4]
[328004686,1716766340170,-500.0,0.00030958,4]
[328004687,1716766340179,-1241.08,0.00030958,4]
[328004688,1716766340188,-1622.1,0.00030958,4]
[328004689,1716766340197,-1457.46,0.00030958,4]
[328004690,1716766340206,-519.03,0.00030958,4]
[328004691,1716766340215,-767.41,0.00030958,4]
[328004692,1716766340225,-540.35,0.00030958,4]
[328004693,1716766340234,-500.0,0.00030958,4]
[328004694,1716766340244,-535.71,0.00030958,4]
[328004695,1716766340260,-754.4,0.00030958,4]
[328004696,1716766340269,-1446.35,0.00030958,4]
[328004697,1716766340279,-3162.97,0.00030958,4]
[328004698,1716766340288,-656.74,0.00030958,4]
[328004699,1716766340298,-1154.85,0.00030958,4]
[328004700,1716766340307,-698.24,0.00030958,4]
[328004701,1716766340317,-1228.33,0.00030958,4]
[328004702,1716766340329,-1334.79,0.00030958,4]
[328004703,1716766340338,-962.47,0.00030958,4]
[328004704,1716766340347,-594.66,0.00030958,4]
[328004705,1716766340356,-500.0,0.00030958,4]
[328004706,1716766340366,-400.0,0.00031,2]
[328004707,1716766340375,-400.0,0.00031,2]
[328004708,1716766340384,-400.0,0.00031,2]
[328004709,1716766340394,-1300.0,0.00031,2]
[328004710,1716766340403,-2906.15860853,0.0003123,2]
[328004711,1716766340413,-189.59245334,0.00031231,4]
[328004712,1716766340423,-448.36423281,0.00031231,4]
[328004713,1716766340432,-500.0,0.00031232,4]
[328004714,1716766340441,-614.92,0.00031232,4]
[328004715,1716766340451,-944.44,0.00031232,4]
[328004716,1716766340460,-791.42,0.00031232,4]
[328004717,1716766340470,-500.0,0.00031232,4]
[328004718,1716766340479,-500.0,0.00031232,4]
[328004719,1716766340488,-822.31,0.00031232,4]
[328004720,1716766340497,-187.4,0.00031232,4]
[328004721,1716766340507,-500.0,0.00031232,4]
[328004722,1716766340518,-500.0,0.00031232,4]
[328004723,1716766340527,-620.76,0.00031232,4]
[328004724,1716766340536,-500.0,0.00031232,4]
[328004725,1716766340547,-526.34,0.00031232,4]
[328004726,1716766340557,-500.0,0.00031232,4]
[328004727,1716766340567,-500.0,0.00031232,4]
[328004728,1716766340577,-576.1,0.00031232,4]
[328004729,1716766340586,-697.5,0.00031232,4]
[328004730,1716766340596,-500.0,0.00031232,4]
[328004731,1716766340606,-500.0,0.00031232,4]
[328004732,1716766340615,-547.78,0.00031232,4]
[328004733,1716766340625,-745.11,0.00031232,4]
[328004734,1716766340634,-533.5,0.00031232,4]
[328004735,1716766340644,-500.0,0.00031232,4]
[328004736,1716766340654,-500.0,0.00031232,4]
[328004737,1716766340664,-500.0,0.00031232,4]
[328004738,1716766340674,-548.59,0.00031232,4]
[328004739,1716766340684,-557.97,0.00031232,4]
[328004740,1716766340694,-521.76,0.00031232,4]
[328004741,1716766340704,-500.0,0.00031232,4]
[328004742,1716766340713,-546.32,0.00031232,4]
[328004743,1716766340722,-503.3,0.00031232,4]
[328004744,1716766340732,-500.0,0.00031232,4]
[328004745,1716766340742,-500.0,0.00031232,4]
[328004746,1716766340751,-513.73,0.00031232,4]
[328004747,1716766340762,-500.0,0.00031232,4]
[328004748,1716766340771,-1125.41,0.00031232,4]
[328004749,1716766340781,-534.62,0.00031232,4]
[328004750,1716766340791,-500.0,0.00031232,4]
[328004751,1716766340800,-540.75,0.00031232,4]
[328004752,1716766340810,-500.0,0.00031232,4]